bitfinex/quotes_BTCUSD_20250813
["timestamp","ask_amount","ask_price","bid_price","bid_amount"]
[1755071171240,1.55102122,119190.0,119180.0,1.00855275]
[1755071171440,1.55102122,119190.0,119180.0,0.70295275]
[1755071173029,1.57615335,119190.0,119180.0,0.90295275]
[1755071173587,1.5604856,119190.0,119180.0,0.90295275]
[1755071175577,0.1577493,119190.0,119180.0,1.20859275]
[1755071175797,1.56572835,119190.0,119180.0,1.20859275]
[1755071176037,1.5604856,119190.0,119180.0,1.20859275]
[1755071179439,1.5604856,119190.0,119180.0,0.90295275]
[1755071181807,0.1577493,119190.0,119180.0,0.90295275]
[1755071182000,1.56572835,119190.0,119180.0,0.90295275]
[1755071182141,1.5604856,119190.0,119180.0,0.90295275]
[1755071184736,0.1577493,119190.0,119180.0,0.90295275]
[1755071184976,0.16299205,119190.0,119180.0,0.90295275]
[1755071185181,1.56572835,119190.0,119180.0,0.90295275]
[1755071185377,1.5604856,119190.0,119180.0,0.90295275]
[1755071185595,1.5604856,119190.0,119180.0,1.20859275]
[1755071189924,1.5626156,119190.0,119180.0,1.20859275]
[1755071191422,1.5626156,119190.0,119180.0,1.10403275]
[1755071192464,1.5626156,119190.0,119180.0,1.10105275]
[1755071195159,2.5694956,119190.0,119180.0,1.10105275]
[1755071195372,2.5726656,119190.0,119180.0,1.10105275]
[1755071195518,2.5726656,119190.0,119180.0,1.20561275]
[1755071197844,2.5694956,119190.0,119180.0,1.20561275]
[1755071198056,1.1646293,119190.0,119180.0,1.20856275]
[1755071198310,2.5673656,119190.0,119180.0,1.20856275]
[1755071199690,1.1646293,119190.0,119180.0,1.20856275]
[1755071199976,2.5673656,119190.0,119180.0,1.20856275]
[1755071201365,2.5673656,119190.0,119180.0,0.90292275]
[1755071202366,2.5663656,119190.0,119180.0,0.93005275]
[1755071202592,2.5643656,119190.0,119180.0,0.93005275]
[1755071202828,1.1616293,119190.0,119180.0,0.93056079]
[1755071203010,1.86299745,119190.0,119180.0,0.93056079]
[1755071203232,1.1616293,119190.0,119180.0,0.93056079]
[1755071203449,1.86299745,119190.0,119180.0,0.93056079]
[1755071204527,2.5643656,119190.0,119180.0,0.93056079]
[1755071204737,1.86299745,119190.0,119180.0,0.93056079]
[1755071205170,1.86299745,119190.0,119180.0,0.93156079]
[1755071205556,1.86299745,119190.0,119180.0,1.23720079]
[1755071206258,1.81299745,119190.0,119180.0,1.23720079]
[1755071206696,1.83814445,119190.0,119180.0,1.23720079]
[1755071208098,1.1367763,119190.0,119180.0,1.23720079]
[1755071208303,1.83814445,119190.0,119180.0,1.23720079]
[1755071208522,1.83814445,119190.0,119180.0,1.13264079]
[1755071208748,1.1367763,119190.0,119180.0,1.13264079]
[1755071208963,1.83814445,119190.0,119180.0,1.13264079]
[1755071212600,1.76282718,119190.0,119180.0,0.93156079]
[1755071213227,1.06145903,119190.0,119180.0,0.93156079]
[1755071213448,1.06145903,119190.0,119180.0,0.93251874]
[1755071213654,1.03631203,119190.0,119180.0,0.93251874]
[1755071213864,1.0111799,119190.0,119180.0,0.93251874]
[1755071215563,1.0111799,119190.0,119180.0,1.23807874]
[1755071216124,1.0111799,119190.0,119180.0,1.24107874]
[1755071216928,1.0111799,119190.0,119180.0,1.24007874]
[1755071217118,1.0111799,119190.0,119180.0,1.24107874]
[1755071217808,1.0111799,119190.0,119180.0,1.13655874]
[1755071221687,1.0111799,119190.0,119180.0,0.93551874]
[1755071223149,1.71254805,119190.0,119180.0,0.93551874]
[1755071223372,1.0111799,119190.0,119180.0,0.93551874]
[1755071223594,1.71254805,119190.0,119180.0,0.93551874]
[1755071223818,1.0111799,119190.0,119180.0,0.90543874]
[1755071224084,1.71465805,119190.0,119180.0,0.90543874]
[1755071224309,1.71465805,119190.0,119180.0,0.90853874]
[1755071224902,1.0132899,119190.0,119180.0,0.90853874]
[1755071225129,1.71465805,119190.0,119180.0,0.90853874]
[1755071225360,1.0132899,119190.0,119180.0,0.90853874]
[1755071225576,1.71465805,119190.0,119180.0,1.01305874]
[1755071225760,1.0111799,119190.0,119180.0,1.21409874]
[1755071226024,1.71254805,119190.0,119180.0,1.21409874]
[1755071226317,1.0111799,119190.0,119180.0,1.21409874]
[1755071226521,1.71254805,119190.0,119180.0,1.21409874]
[1755071226953,1.0111799,119190.0,119180.0,1.21409874]
[1755071227157,1.71254805,119190.0,119180.0,1.21409874]
[1755071227362,1.0111799,119190.0,119180.0,1.21409874]
[1755071227564,1.71254805,119190.0,119180.0,1.21409874]
[1755071228833,1.0111799,119190.0,119180.0,1.21409874]
[1755071229061,1.71254805,119190.0,119180.0,1.21409874]
[1755071229511,1.0111799,119190.0,119180.0,1.21409874]
[1755071229722,1.71254805,119190.0,119180.0,1.10957874]
[1755071230154,1.0111799,119190.0,119180.0,1.10957874]
[1755071230368,1.71254805,119190.0,119180.0,1.10957874]
[1755071232265,1.0111799,119190.0,119180.0,1.10957874]
[1755071232474,1.71254805,119190.0,119180.0,1.10957874]
[1755071233503,1.71465805,119190.0,119180.0,1.10957874]
[1755071233939,1.71465805,119190.0,119180.0,0.90853874]
[1755071234936,1.71788805,119190.0,119180.0,0.90336874]
[1755071235558,1.0165199,119190.0,119180.0,1.21090874]
[1755071235904,1.71465805,119190.0,119180.0,1.21090874]
[1755071237809,1.71465805,119190.0,119180.0,1.10638874]
[1755071238017,1.0132899,119190.0,119180.0,1.10638874]
[1755071238248,1.71465805,119190.0,119180.0,1.10638874]
[1755071238575,1.0132899,119190.0,119180.0,1.10638874]
[1755071238778,1.71465805,119190.0,119180.0,1.10638874]
[1755071239527,1.71465805,119190.0,119180.0,0.97894874]
[1755071239737,1.71788805,119190.0,119180.0,1.10452874]
[1755071241633,1.01084265,119190.0,119180.0,1.10452874]
[1755071241840,1.7122108,119190.0,119180.0,0.90352874]
[1755071242705,1.01084265,119190.0,119180.0,0.90352874]
[1755071243113,1.7122108,119190.0,119180.0,0.90352874]
[1755071244578,1.01084265,119190.0,119180.0,0.90352874]
[1755071245049,1.7122108,119190.0,119180.0,0.90352874]
[1755071245558,1.7122108,119190.0,119180.0,1.20908874]
[1755071246260,2.41357895,119190.0,119180.0,1.20908874]
[1755071246440,1.7122108,119190.0,119180.0,1.20908874]
[1755071248027,1.01084265,119190.0,119180.0,1.20908874]
[1755071248232,1.7122108,119190.0,119180.0,1.20908874]
[1755071248815,1.7122108,119190.0,119180.0,1.20902409]
[1755071249519,1.7122108,119190.0,119180.0,0.90346409]
[1755071252767,1.01084265,119190.0,119180.0,0.90346409]
[1755071252984,1.7122108,119190.0,119180.0,0.90346409]
[1755071255503,1.7122108,119190.0,119180.0,1.00798409]
[1755071255716,1.7122108,119190.0,119180.0,1.20902409]
[1755071255929,1.01084265,119190.0,119180.0,1.20902409]
[1755071256105,1.7122108,119190.0,119180.0,1.20902409]
[1755071257394,1.01084265,119190.0,119180.0,1.20902409]
[1755071257520,1.7122108,119190.0,119180.0,1.20902409]
[1755071257932,1.01084265,119190.0,119180.0,1.20902409]
[1755071258148,1.7122108,119190.0,119180.0,1.20902409]
[1755071260846,1.7122108,119190.0,119180.0,0.97594614]
[1755071261068,2.41357895,119190.0,119180.0,1.10454409]
[1755071261279,1.7122108,119190.0,119180.0,1.10454409]
[1755071262936,1.7122108,119190.0,119180.0,0.90350409]
[1755071263326,2.41357895,119190.0,119180.0,0.90350409]
[1755071264008,2.41357895,119190.0,119180.0,0.90254614]
[1755071264222,2.4963022,119190.0,119180.0,0.90250614]
[1755071265596,2.4963022,119190.0,119180.0,1.20806614]
[1755071266357,1.0935659,119190.0,119180.0,1.20806614]
[1755071266544,2.4963022,119190.0,119180.0,1.20806614]
[1755071268226,2.4963022,119190.0,119180.0,1.10354614]
[1755071274290,2.4963022,119190.0,119180.0,0.70250614]
[1755071274517,2.4963022,119190.0,119180.0,0.90250614]
[1755071274856,2.4963022,119190.0,119180.0,0.70250614]
[1755071275289,2.4963022,119190.0,119180.0,0.90250614]
[1755071275554,2.4963022,119190.0,119180.0,1.20806614]
[1755071277268,2.4963022,119190.0,119180.0,1.08046614]
[1755071277476,2.51375122,119190.0,119180.0,1.0799581]
[1755071277684,2.53889922,119190.0,119180.0,1.2074781]
[1755071278240,2.53889922,119190.0,119180.0,1.2064781]
[1755071278650,2.53889922,119190.0,119180.0,1.2034781]
[1755071278856,2.53889922,119190.0,119180.0,1.2044781]
[1755071279261,2.53889922,119190.0,119180.0,1.0999581]
[1755071279262,2.53589922,119190.0,119180.0,1.0999581]
[1755071280568,2.53589922,119190.0,119180.0,1.10046614]
[1755071281007,1.13316292,119190.0,119180.0,1.10046614]
[1755071281251,2.53589922,119190.0,119180.0,1.10046614]
[1755071281682,2.53589922,119190.0,119180.0,0.89942614]
[1755071281894,2.53589922,119190.0,119180.0,0.89950614]
[1755071283460,2.53589922,119190.0,119180.0,0.7713981]
[1755071283682,2.53589922,119190.0,119180.0,0.8990781]
[1755071283841,2.55153642,119190.0,119180.0,0.89958614]
[1755071284215,2.53589922,119190.0,119180.0,0.89958614]
[1755071284909,2.53689922,119190.0,119180.0,0.89958614]
[1755071285556,2.53689922,119190.0,119180.0,1.20514614]
[1755071285780,2.53689922,119190.0,119180.0,1.20414614]
[1755071286173,2.53889922,119190.0,119180.0,1.20414614]
[1755071291838,2.53889922,119190.0,119180.0,0.89858614]
[1755071295723,2.53889922,119190.0,119180.0,1.20422614]
[1755071297801,2.58920922,119190.0,119180.0,1.20422614]
[1755071298032,2.53889922,119190.0,119180.0,1.20422614]
[1755071299939,2.53889922,119190.0,119180.0,1.09966614]
[1755071300588,2.53889922,119190.0,119180.0,0.8991581]
[1755071300806,2.55453631,119190.0,119180.0,0.6980781]
[1755071301044,3.25590446,119190.0,119180.0,0.6980781]
[1755071301268,2.55453631,119190.0,119180.0,0.6980781]
[1755071301492,3.27994651,119190.0,119180.0,0.5703981]
[1755071301720,3.27994626,119190.0,119180.0,0.6978781]
[1755071302368,3.26430942,119190.0,119180.0,0.6978781]
[1755071302580,3.27994572,119190.0,119180.0,0.6978781]
[1755071304903,1.17584127,119190.0,119180.0,0.6978781]
[1755071305110,3.27994572,119190.0,119180.0,0.6978781]
[1755071305636,3.27994572,119190.0,119180.0,0.8760381]
[1755071305850,3.27994572,119190.0,119180.0,0.86875]
[1755071307948,3.33025572,119190.0,119180.0,0.86875]
[1755071308580,3.33025701,119190.0,119180.0,0.86875]
[1755071309214,1.22615256,119190.0,119180.0,0.86875]
[1755071309469,3.33025701,119190.0,119180.0,0.86875]
[1755071311061,3.33025627,119190.0,119180.0,0.86875]
[1755071312501,3.27994627,119190.0,119180.0,0.86875]
[1755071317929,3.27994464,119190.0,119180.0,0.86875]
[1755071318880,2.57857649,119190.0,119180.0,0.86875]
[1755071319764,2.57857721,119190.0,119180.0,0.86875]
[1755071320145,3.27994533,119190.0,119180.0,0.86875]
[1755071322677,2.57857718,119190.0,119180.0,0.86875]
[1755071322885,2.62888718,119190.0,119180.0,0.86875]
[1755071327071,2.61325127,119190.0,119180.0,0.86875]
[1755071327499,3.33026563,119190.0,119180.0,0.86875]
[1755071328005,3.33026569,119190.0,119180.0,0.86875]
[1755071328972,2.62889754,119190.0,119180.0,0.86875]
[1755071330412,2.62890944,119190.0,119180.0,0.86875]
[1755071331821,1.22617314,119190.0,119180.0,0.86875]
[1755071332015,2.62890944,119190.0,119180.0,0.86875]
[1755071332527,2.57859944,119190.0,119180.0,0.86875]
[1755071333286,2.54921739,119190.0,119180.0,0.87373]
[1755071333487,1.84784924,119190.0,119180.0,0.90043]
[1755071333730,1.84784924,119190.0,119180.0,1.10043]
[1755071333931,2.54921739,119190.0,119180.0,1.10093804]
[1755071334645,2.54921739,119190.0,119180.0,0.99637804]
[1755071335695,2.54921739,119190.0,119180.0,1.10093804]
[1755071336262,2.54921739,119190.0,119180.0,1.30093804]
[1755071336466,1.84784924,119190.0,119180.0,1.30093804]
[1755071336690,1.83219107,119190.0,119180.0,1.30093804]
[1755071337223,2.53355922,119190.0,119180.0,1.30093804]
[1755071338521,2.53355922,119190.0,119180.0,1.19637804]
[1755071340579,1.13082292,119190.0,119180.0,1.19637804]
[1755071340785,2.53355922,119190.0,119180.0,0.99529804]
[1755071342732,1.13082292,119190.0,119180.0,0.99529804]
[1755071343170,2.53355922,119190.0,119180.0,0.99529804]
[1755071343910,1.13082292,119190.0,119180.0,0.99529804]
[1755071344181,2.53355922,119190.0,119180.0,0.99529804]
[1755071344396,1.83219107,119190.0,119180.0,0.99529804]
[1755071344778,2.53355922,119190.0,119180.0,0.99529804]
[1755071345741,2.53355922,119190.0,119180.0,1.30093804]
[1755071348628,2.53355922,119190.0,119180.0,0.99529804]
[1755071352664,1.13082292,119190.0,119180.0,0.99529804]
[1755071353032,2.53355922,119190.0,119180.0,0.99529804]
[1755071355507,2.53355922,119190.0,119180.0,1.30093804]
[1755071358673,2.53560922,119190.0,119180.0,1.30093804]
[1755071359771,2.53872922,119190.0,119180.0,1.27120804]
[1755071362741,1.13599292,119190.0,119180.0,1.27120804]
[1755071363169,2.53872922,119190.0,119180.0,1.27120804]
[1755071371498,2.53560922,119190.0,119180.0,1.16664804]
[1755071371957,2.53560922,119190.0,119180.0,1.16973804]
[1755071372172,1.13287292,119190.0,119180.0,1.16973804]
[1755071372388,2.53560922,119190.0,119180.0,1.16973804]
[1755071373625,1.13287292,119190.0,119180.0,1.16973804]
[1755071373832,2.53560922,119190.0,119180.0,1.16973804]
[1755071375408,2.53560922,119190.0,119180.0,1.16664804]
[1755071375648,2.53560922,119190.0,119180.0,1.27120804]
[1755071376267,2.53868922,119190.0,119180.0,1.27120804]
[1755071379530,2.53868922,119190.0,119180.0,1.16664804]
[1755071381853,2.53868922,119190.0,119180.0,0.96556804]
[1755071385630,2.53868922,119190.0,119180.0,1.27120804]
[1755071392395,2.53868922,119190.0,119180.0,1.16664804]
[1755071394621,2.53868922,119190.0,119180.0,0.96556804]
[1755071395823,2.53868922,119190.0,119180.0,1.27120804]
[1755071397739,2.53868922,119190.0,119180.0,0.96556804]
[1755071400737,2.53868922,119190.0,119180.0,0.43613804]
[1755071401157,3.24005737,119190.0,119180.0,0.43613804]
[1755071401360,2.53868922,119190.0,119180.0,0.56357804]
[1755071401775,2.56273127,119190.0,119180.0,0.56307]
[1755071402238,2.56273127,119190.0,119180.0,0.56357804]
[1755071403071,2.56273127,119190.0,119180.0,0.56307]
[1755071403590,2.61304127,119190.0,119180.0,0.56307]
[1755071404222,3.31440942,119190.0,119180.0,0.56307]
[1755071404434,2.61304127,119190.0,119180.0,0.56307]
[1755071404924,3.31440942,119190.0,119180.0,0.56307]
[1755071405699,3.31440942,119190.0,119180.0,0.86871]
[1755071411372,3.31440942,119190.0,119180.0,0.73232464]
[1755071411605,3.31440942,119190.0,119180.0,0.75976464]
[1755071412273,3.31340942,119190.0,119180.0,0.75976464]
[1755071412597,3.31140942,119190.0,119180.0,0.75976464]
[1755071412818,3.31340942,119190.0,119180.0,0.75976464]
[1755071413036,3.31540942,119190.0,119180.0,0.75976464]
[1755071414598,3.3436168,119190.0,119180.0,0.75976464]
[1755071415139,1.21130497,119190.0,119180.0,0.75976464]
[1755071415358,2.61404127,119190.0,119180.0,0.75976464]
[1755071416219,3.31540942,119190.0,119180.0,0.75976464]
[1755071417652,2.61404127,119190.0,119180.0,0.75976464]
[1755071421175,3.31540942,119190.0,119180.0,0.75976464]
[1755071426750,2.61404127,119190.0,119180.0,0.75976464]
[1755071427588,2.56373127,119190.0,119180.0,0.75976464]
[1755071430407,3.26509942,119190.0,119180.0,0.75976464]
[1755071431544,2.56065127,119190.0,119180.0,0.76488464]
[1755071431769,2.55860127,119190.0,119180.0,0.76488464]
[1755071432304,2.56065127,119190.0,119180.0,0.76488464]
[1755071432510,2.56065127,119190.0,119180.0,0.76178464]
[1755071435467,2.56382127,119190.0,119180.0,0.76178464]
[1755071437767,2.61413127,119190.0,119180.0,0.76178464]
[1755071439441,2.61413127,119190.0,119180.0,0.75976464]
[1755071443536,3.31549942,119190.0,119180.0,0.75976464]
[1755071445648,2.61413127,119190.0,119180.0,0.75976464]
[1755071451892,3.31549942,119190.0,119180.0,0.75976464]
[1755071452311,2.61413127,119190.0,119180.0,0.75976464]
[1755071453774,2.61413127,119190.0,119180.0,0.76178464]
[1755071465481,2.60970581,119190.0,119180.0,0.76178464]
[1755071470452,2.60970581,119190.0,119180.0,0.75976464]
[1755071473938,2.60653581,119190.0,119180.0,0.76489464]
[1755071475685,2.55417581,119190.0,119180.0,0.76489464]
[1755071475898,2.55417581,119190.0,119180.0,0.78853464]
[1755071478756,1.15143951,119190.0,119180.0,0.78853464]
[1755071478969,2.55417581,119190.0,119180.0,0.78853464]
[1755071479747,2.53013376,119190.0,119180.0,0.78853464]
[1755071479971,1.12739746,119190.0,119180.0,0.98853464]
[1755071480179,2.53013376,119190.0,119180.0,0.98904268]
[1755071481827,1.82876561,119190.0,119180.0,1.18904268]
[1755071482040,2.53013376,119190.0,119180.0,1.18904268]
[1755071493891,2.53220376,119190.0,119180.0,1.18602268]
[1755071496583,2.53220376,119190.0,119180.0,1.18895268]
[1755071497431,2.53536376,119190.0,119180.0,1.16238268]
[1755071498790,1.13262746,119190.0,119180.0,1.16238268]
[1755071498994,2.53220376,119190.0,119180.0,1.16238268]
[1755071499616,2.53536376,119190.0,119180.0,1.16238268]
[1755071501014,2.53220376,119190.0,119180.0,1.16238268]
[1755071503445,2.53536376,119190.0,119180.0,1.16238268]
[1755071505973,2.53536376,119190.0,119180.0,0.76027268]
[1755071508148,3.23673191,119190.0,119180.0,0.76027268]
[1755071508342,2.53536376,119190.0,119180.0,0.76027268]
[1755071510409,2.53536376,119190.0,119180.0,0.75976464]
[1755071510610,2.53536376,119190.0,119180.0,0.76027268]
[1755071511650,2.55940581,119190.0,119180.0,0.76027268]
[1755071513955,2.55940581,119190.0,119180.0,0.96027268]
[1755071514815,2.55940581,119190.0,119180.0,0.95976464]
[1755071514993,2.55940581,119190.0,119180.0,0.96027268]
[1755071520498,1.15666951,119190.0,119180.0,0.96027268]
[1755071520737,2.55940581,119190.0,119180.0,0.96231268]
[1755071524725,2.55123427,119190.0,119180.0,0.96231268]
[1755071529568,2.55123427,119190.0,119180.0,0.96027268]
[1755071531867,2.55123427,119190.0,119180.0,0.96231268]
[1755071532081,1.14533797,119190.0,119180.0,0.96231268]
[1755071532303,2.54807427,119190.0,119180.0,0.96231268]
[1755071532763,2.52196222,119190.0,119180.0,0.96541268]
[1755071532948,2.52196222,119190.0,119180.0,0.98888268]
[1755071544860,1.11922592,119190.0,119180.0,0.98888268]
[1755071545073,2.52196222,119190.0,119180.0,1.08888268]
[1755071545768,2.51996222,119190.0,119180.0,1.08888268]
[1755071546031,2.51896222,119190.0,119180.0,1.08888268]
[1755071546208,2.51996222,119190.0,119180.0,1.08888268]
[1755071547292,2.52202222,119190.0,119180.0,1.08888268]
[1755071547704,2.51996222,119190.0,119180.0,1.28888268]
[1755071554610,1.11722592,119190.0,119180.0,1.28888268]
[1755071554826,2.51996222,119190.0,119180.0,1.28888268]
[1755071555025,2.52195222,119190.0,119180.0,1.28888268]
[1755071555224,2.52195222,119190.0,119180.0,1.28578268]
[1755071555888,1.0997769,119190.0,119180.0,1.28878268]
[1755071556147,0.96690565,119190.0,119180.0,1.28974063]
[1755071556354,0.96690565,119190.0,119180.0,1.18518063]
[1755071556983,0.96590565,119190.0,119180.0,1.18518063]
[1755071558057,1.6672738,119190.0,119180.0,1.18518063]
[1755071558281,1.6672738,119190.0,119180.0,1.18818063]
[1755071558507,0.96590565,119190.0,119180.0,1.18818063]
[1755071558986,0.96490565,119190.0,119180.0,1.18818063]
[1755071559346,0.96590565,119190.0,119180.0,0.99110063]
[1755071565739,0.96590565,119190.0,119180.0,1.29666063]
[1755071569494,0.96590565,119190.0,119180.0,1.19214063]
[1755071575278,0.96590565,119190.0,119180.0,1.18003744]
[1755071575435,0.96590565,119190.0,119180.0,0.97899744]
[1755071575641,0.96590565,119190.0,119180.0,1.28455744]
[1755071579482,0.96590565,119190.0,119180.0,1.18003744]
[1755071582922,0.96590565,119190.0,119180.0,1.12899744]
[1755071585604,0.96590565,119190.0,119180.0,1.43455744]
[1755071589146,0.96590565,119190.0,119180.0,1.33003744]
[1755071590990,0.96590565,119190.0,119180.0,1.12899744]
[1755071591726,0.96798565,119190.0,119180.0,1.10552744]
[1755071592325,0.96590565,119190.0,119180.0,1.10552744]
[1755071595600,0.96590565,119190.0,119180.0,1.41108744]
[1755071601096,0.96590565,119190.0,119180.0,1.30656744]
[1755071604050,0.96798565,119190.0,119180.0,1.30656744]
[1755071605542,0.96798565,119190.0,119180.0,1.41108744]
[1755071611210,0.96798565,119190.0,119180.0,1.30656744]
[1755071611985,0.96590565,119190.0,119180.0,1.30656744]
[1755071613504,0.96590565,119190.0,119180.0,1.10552744]
[1755071615036,0.96796565,119190.0,119180.0,1.10552744]
[1755071615685,0.96796565,119190.0,119180.0,1.41104744]
[1755071618318,0.96796565,119190.0,119180.0,1.40804744]
[1755071618521,0.97107565,119190.0,119180.0,1.40804744]
[1755071621562,0.97107565,119190.0,119180.0,1.30352744]
[1755071623634,0.97107565,119190.0,119180.0,1.10252744]
[1755071624267,0.96796565,119190.0,119180.0,1.10252744]
[1755071625048,0.96796565,119190.0,119180.0,1.10573744]
[1755071625583,0.96796565,119190.0,119180.0,1.41125744]
[1755071627385,0.96590565,119190.0,119180.0,1.41125744]
[1755071630560,0.96590565,119190.0,119180.0,1.10573744]
[1755071631418,0.96590565,119190.0,119180.0,1.2785284]
[1755071631628,0.94090565,119190.0,119180.0,1.3917084]
[1755071631828,0.91590565,119190.0,119180.0,1.4168434]
[1755071632700,0.91490565,119190.0,119180.0,1.4128434]
[1755071632827,0.91490565,119190.0,119180.0,1.4098434]
[1755071633029,0.91590565,119190.0,119180.0,1.4158434]
[1755071633324,0.91590565,119190.0,119180.0,1.4198434]
[1755071634553,0.91590565,119190.0,119180.0,1.35299569]
[1755071635625,0.91590565,119190.0,119180.0,1.76303569]
[1755071636089,0.91590565,119190.0,119180.0,1.73981569]
[1755071636301,0.91590565,119190.0,119180.0,1.65163569]
[1755071637770,0.91590565,119190.0,119180.0,1.24159569]
[1755071639646,3.91590565,119190.0,119180.0,1.24159569]
[1755071640613,3.91802565,119190.0,119180.0,1.01314569]
[1755071640814,3.92107565,119190.0,119180.0,0.98801069]
[1755071644854,3.91802565,119190.0,119180.0,0.98801069]
[1755071645522,3.91802565,119190.0,119180.0,1.29353069]
[1755071647111,3.91590565,119190.0,119180.0,1.29658069]
[1755071647582,3.91590565,119190.0,119180.0,1.19206069]
[1755071648441,3.91590565,119190.0,119180.0,1.21719769]
[1755071648643,3.91590565,119190.0,119180.0,1.19206069]
[1755071651544,3.91590565,119190.0,119180.0,0.99106069]
[1755071653919,3.92107565,119190.0,119180.0,0.98801069]
[1755071654126,3.92107565,119190.0,119180.0,0.98597069]
[1755071654548,3.92107565,119190.0,119180.0,1.18597069]
[1755071655517,3.92107565,119190.0,119180.0,1.49149069]
[1755071658324,3.92107565,119190.0,119180.0,1.38697069]
[1755071659984,3.92107565,119190.0,119180.0,1.38911069]
[1755071660191,3.92107565,119190.0,119180.0,1.18811069]
[1755071661205,3.92107565,119190.0,119180.0,1.18597069]
[1755071661412,3.92107565,119190.0,119180.0,0.98597069]
[1755071662060,3.92107565,119190.0,119180.0,0.50781274]
[1755071662243,3.92107565,119190.0,119180.0,0.98593069]
[1755071662383,3.92107565,119190.0,119180.0,0.63497274]
[1755071662801,3.92107565,119190.0,119180.0,0.98593069]
[1755071662991,3.92107565,119190.0,119180.0,0.63497274]
[1755071663190,3.92107565,119190.0,119180.0,0.98593069]
[1755071663653,3.92107565,119190.0,119180.0,0.63497274]
[1755071663882,3.92107565,119190.0,119180.0,0.98593069]
[1755071665776,3.92107565,119190.0,119180.0,1.29145069]
[1755071666716,3.92107565,119190.0,119180.0,1.12037819]
[1755071666927,3.92107565,119190.0,119180.0,0.76842024]
[1755071667149,3.92107565,119190.0,119180.0,0.56842024]
[1755071667387,3.92107565,119190.0,119180.0,0.91937819]
[1755071667595,3.92107565,119190.0,119180.0,0.56842024]
[1755071667799,3.92107565,119190.0,119180.0,0.91937819]
[1755071667976,3.92107565,119190.0,119180.0,0.56842024]
[1755071668127,3.92107565,119190.0,119180.0,0.91937819]
[1755071671734,3.92107565,119190.0,119180.0,0.56842024]
[1755071671936,3.92107565,119190.0,119180.0,0.91937819]
[1755071672144,3.92107565,119190.0,119180.0,0.56842024]
[1755071672424,3.92107565,119190.0,119180.0,0.91937819]
[1755071673020,3.92107565,119190.0,119180.0,0.56842024]
[1755071673562,3.92107565,119190.0,119180.0,0.91937819]
[1755071675562,3.92107565,119190.0,119180.0,1.02389819]
[1755071675766,3.92107565,119190.0,119180.0,1.22489819]
[1755071678909,3.92107565,119190.0,119180.0,1.12037819]
[1755071682401,3.92107565,119190.0,119180.0,6.16945518]
[1755071682402,2.09260738,119190.0,119180.0,6.16945518]
[1755071682639,0.0074211,119190.0,119180.0,6.49214188]
[1755071682867,3.7536808,119200.0,119190.0,0.33365311]
[1755071683095,3.7536808,119200.0,119190.0,5.85685311]
[1755071683338,3.7536808,119200.0,119190.0,5.94471043]
[1755071683803,2.88220091,119200.0,119190.0,5.94471043]
[1755071684032,2.83422233,119200.0,119190.0,6.07283043]
[1755071684253,2.81124245,119200.0,119190.0,6.07283043]
[1755071684511,2.81224245,119200.0,119190.0,6.08683043]
[1755071684730,2.81224245,119200.0,119190.0,6.06385055]
[1755071685208,2.80386505,119200.0,119190.0,6.06385055]
[1755071685642,2.79548765,119200.0,119190.0,6.5664938]
[1755071685859,2.78711025,119200.0,119190.0,6.3576492]
[1755071686086,2.78711025,119200.0,119190.0,6.3575338]
[1755071686313,2.77873285,119200.0,119190.0,6.6505006]
[1755071686760,2.77035545,119200.0,119190.0,6.4495406]
[1755071686968,2.77035545,119200.0,119190.0,6.4327706]
[1755071689000,2.76615545,119200.0,119190.0,6.4327706]
[1755071690246,2.76615545,119200.0,119190.0,6.4578926]
[1755071690652,2.76615545,119200.0,119190.0,6.78228351]
[1755071691318,2.76615545,119200.0,119190.0,6.80155069]
[1755071691740,2.76615545,119200.0,119190.0,5.37354769]
[1755071692178,2.76615545,119200.0,119190.0,7.11521885]
[1755071695548,2.76615545,119200.0,119190.0,7.21965885]
[1755071695756,2.76615545,119200.0,119190.0,7.52497885]
[1755071697047,2.76615545,119200.0,119190.0,7.42053885]
[1755071699180,2.76615545,119200.0,119190.0,7.31609885]
[1755071699394,2.76615545,119200.0,119190.0,7.11521885]
[1755071699627,2.75778416,119200.0,119190.0,7.11521885]
[1755071699820,2.75778416,119200.0,119190.0,7.38229885]
[1755071699821,2.70448462,119200.0,119190.0,7.38229885]
[1755071700026,2.68763721,119200.0,119190.0,7.38229885]
[1755071700258,2.66723344,119200.0,119190.0,7.38229885]
[1755071700462,2.62956261,119200.0,119190.0,7.18229885]
[1755071700678,2.62856261,119200.0,119190.0,7.14903167]
[1755071700883,2.59272606,119200.0,119190.0,7.13903167]
[1755071701107,2.56342652,119200.0,119190.0,7.15659854]
[1755071701311,2.55505523,119200.0,119190.0,7.15203167]
[1755071701570,2.55196068,119200.0,119190.0,7.15203167]
[1755071701771,2.51429701,119200.0,119190.0,7.16959854]
[1755071701974,2.50592731,119200.0,119190.0,7.16959854]
[1755071702394,2.46826364,119200.0,119190.0,7.16959854]
[1755071702864,2.45989394,119200.0,119190.0,7.16959854]
[1755071703076,2.43059997,119200.0,119190.0,7.16959854]
[1755071703283,2.35328529,119200.0,119190.0,7.20639854]
[1755071703528,2.34061588,119200.0,119190.0,7.20639854]
[1755071703736,2.30295221,119200.0,119190.0,7.20639854]
[1755071703949,2.29458251,119200.0,119190.0,7.20639854]
[1755071704182,2.21771051,119200.0,119190.0,7.20639854]
[1755071704399,2.18004684,119200.0,119190.0,7.20639854]
[1755071704846,2.15334332,119200.0,119190.0,7.20639854]
[1755071705063,2.12404935,119200.0,119190.0,7.88039854]
[1755071705268,2.11567965,119200.0,119190.0,7.88039854]
[1755071705707,2.07801598,119200.0,119190.0,8.08123854]
[1755071705912,2.07801598,119200.0,119190.0,7.88039854]
[1755071706120,2.06964628,119200.0,119190.0,7.88039854]
[1755071706344,2.03198261,119200.0,119190.0,7.88039854]
[1755071706552,1.94818261,119200.0,119190.0,7.88039854]
[1755071706776,1.93981291,119200.0,119190.0,7.88039854]
[1755071706982,1.91051894,119200.0,119190.0,7.88039854]
[1755071707187,1.88537924,119200.0,119190.0,7.88039854]
[1755071707617,1.84771557,119200.0,119190.0,7.88039854]
[1755071708071,1.83934698,119200.0,119190.0,7.84359854]
[1755071708285,1.81005691,119200.0,119190.0,7.84359854]
[1755071708488,1.80168832,119200.0,119190.0,7.84359854]
[1755071708699,1.80139714,119200.0,119190.0,7.84359854]
[1755071708903,1.76373848,119200.0,119190.0,7.84359854]
[1755071709111,1.75536989,119200.0,119190.0,7.84359854]
[1755071709533,1.71771123,119200.0,119190.0,7.84359854]
[1755071709972,1.70934264,119200.0,119190.0,7.84359854]
[1755071710184,1.68005257,119200.0,119190.0,7.84359854]
[1755071710408,1.67168398,119200.0,119190.0,7.84359854]
[1755071710823,1.39702532,119200.0,119190.0,7.60659854]
[1755071711286,1.38865673,119200.0,119190.0,7.60659854]
[1755071711468,1.38028814,119200.0,119190.0,7.60659854]
[1755071711904,1.37191955,119200.0,119190.0,7.60659854]
[1755071712338,1.36355096,119200.0,119190.0,7.60659854]
[1755071712761,1.35518237,119200.0,119190.0,7.60659854]
[1755071713232,1.22508393,119200.0,119190.0,7.60659854]
[1755071713668,1.21671534,119200.0,119190.0,7.60659854]
[1755071713877,1.17905668,119200.0,119190.0,7.60659854]